bitfinex/quotes_ETHUSD_20241204
["timestamp","ask_amount","ask_price","bid_price","bid_amount"]
[1733293912515,2.71441,3684.1,3683.6,2.5918093]
[1733293912701,2.71445,3684.0,3683.3,4.33873862]
[1733293912902,3.47475,3684.0,3683.3,4.33873862]
[1733293913128,2.71453,3683.9,3683.3,3.53963862]
[1733293913293,2.71453,3683.9,3683.3,3.0]
[1733293914407,2.71453,3683.9,3683.3,3.69528878]
[1733293915219,2.7146,3683.8,3683.3,3.0]
[1733293916358,3.47474,3684.0,3683.3,3.0]
[1733293916736,0.7603,3684.0,3683.3,3.0]
[1733293916920,0.7711,3684.3,3683.6,2.5918093]
[1733293917258,3.48532,3684.3,3683.6,3.3656093]
[1733293917836,2.7143,3684.2,3683.6,3.3656093]
[1733293919268,10.13750972,3684.2,3683.6,3.3656093]
[1733293920858,7.42320972,3684.2,3683.6,3.3656093]
[1733293921165,2.71439,3684.1,3683.6,0.7738]
[1733293921472,2.71422,3684.3,3683.6,0.7738]
[1733293923434,8.24490972,3684.6,3683.6,0.7738]
[1733293923773,2.71429,3684.2,3683.6,0.7738]
[1733293924272,2.71414,3684.4,3683.6,0.7738]
[1733293924477,2.71431,3684.2,3683.6,0.7738]
[1733293924833,2.71414,3684.4,3683.6,0.7738]
[1733293925082,1.09587797,3684.5,3683.6,0.7738]
[1733293925238,2.71451,3683.9,3683.1,0.5354785]
[1733293925593,2.71474,3683.6,3683.0,0.7548]
[1733293926577,3.50408,3683.4,3682.8,2.5918093]
[1733293926790,2.71488,3683.4,3682.8,2.5918093]
[1733293930467,2.71488,3683.4,3682.9,0.797]
[1733293931576,2.71474,3683.6,3682.9,1.18958278]
[1733293931757,7.42320972,3683.7,3682.9,1.18958278]
[1733293931960,2.71481,3683.5,3682.9,1.18958278]
[1733293932459,2.71491,3683.4,3682.9,1.18958278]
[1733293933059,7.42320972,3683.7,3682.9,1.18958278]
[1733293933256,2.71489,3683.4,3682.9,0.797]
[1733293933800,2.71489,3683.4,3682.9,1.96557352]
[1733293934327,10.13788972,3683.7,3683.2,1.16857352]
[1733293934627,7.42320972,3683.7,3683.2,1.16857352]
[1733293935519,7.42320972,3683.7,3683.5,1.98767352]
[1733293936685,7.42320972,3683.7,3683.5,2.18644087]
[1733293936880,7.42320972,3683.7,3683.6,0.7843]
[1733293937113,0.2837822,3684.2,3683.6,3.0]
[1733293937415,0.2837822,3684.2,3684.1,1.95287352]
[1733293937617,0.2837822,3684.2,3684.1,0.7843]
[1733293937818,0.2837822,3684.2,3684.1,1.12147607]
[1733293941721,0.2837822,3684.2,3684.1,6.83583607]
[1733293942230,7.42320972,3685.4,3684.4,3.46874]
[1733293942434,7.42320972,3685.4,3684.1,3.33717607]
[1733293942435,0.28318402,3684.8,3684.6,0.7546]
[1733293942648,7.42320972,3685.6,3684.6,0.7546]
[1733293942796,0.2538307,3685.5,3685.1,0.7546]
[1733293942995,0.2538307,3685.4,3685.1,0.7546]
[1733293943239,0.28319237,3685.5,3685.1,0.7546]
[1733293944650,0.28319237,3685.5,3685.4,2.58746068]
[1733293945335,0.28319237,3685.5,3685.1,0.7546]
[1733293945632,0.28319237,3685.5,3685.2,0.33420607]
[1733293945835,0.28319237,3685.5,3685.4,2.58746068]
[1733293946521,0.28319237,3685.5,3685.4,3.39426068]
[1733293948140,0.28319237,3685.5,3685.4,3.3868191]
[1733293950473,0.28319237,3685.5,3685.4,3.93981448]
[1733293952117,0.28319237,3685.5,3685.4,9.65321448]
[1733293952360,0.9253175,3686.7,3685.6,0.7818]
[1733293952669,0.28320044,3686.3,3685.9,2.58746068]
[1733293952954,0.28320044,3686.3,3686.0,0.7818]
[1733293954045,0.1600175,3686.7,3686.1,0.02712464]
[1733293954253,0.1600175,3686.7,3686.6,2.58746068]
[1733293954462,0.4432109,3686.7,3686.6,2.58746068]
[1733293954665,0.4432109,3686.7,3686.6,3.40476068]
[1733293956139,0.4432109,3686.7,3686.6,3.94509134]
[1733293960082,0.4432109,3686.7,3686.6,4.33960047]
[1733293963161,0.4432109,3686.7,3686.6,1.35763066]
[1733293963366,0.4432109,3686.7,3686.2,3.7694]
[1733293963788,0.4432109,3686.7,3686.2,3.0]
[1733293963789,2.71255,3686.6,3686.2,3.0]
[1733293964094,0.4432109,3686.7,3686.2,3.0]
[1733293964671,0.4432109,3686.7,3686.1,2.58746068]
[1733293964860,2.71268,3686.4,3686.1,2.58746068]
[1733293965187,0.4432109,3686.7,3686.1,2.58746068]
[1733293965188,2.71275,3686.3,3686.1,2.58746068]
[1733293965778,2.71259,3686.6,3686.1,2.58746068]
[1733293966079,3.29933609,3686.6,3686.1,2.58746068]
[1733293966294,2.71252,3686.6,3686.1,2.58746068]
[1733293966653,0.4432109,3686.7,3686.1,2.58746068]
[1733293967643,3.1556609,3686.7,3686.1,2.58746068]
[1733293967874,0.4432109,3686.7,3686.1,2.58746068]
[1733293968117,2.71257,3686.6,3686.1,2.58746068]
[1733293968977,0.4432109,3686.7,3686.1,2.58746068]
[1733293969664,0.7843,3687.0,3686.1,2.58746068]
[1733293969880,1.133936,3687.0,3686.1,2.58746068]
[1733293970512,2.71238,3686.8,3686.1,2.58746068]
[1733293973140,3.49657,3687.0,3686.1,2.58746068]
[1733293973429,2.7123,3686.9,3686.1,2.58746068]
[1733293974152,2.71238,3686.8,3686.1,2.58746068]
[1733293974437,2.71252,3686.7,3686.1,2.58746068]
[1733293974626,2.71254,3686.6,3686.1,2.58746068]
[1733293975242,2.71238,3686.8,3686.1,2.58746068]
[1733293975588,2.71256,3686.6,3686.1,2.58746068]
[1733293975736,2.7126,3686.5,3686.1,2.58746068]
[1733293978712,2.7126,3686.5,3685.9,3.37536068]
[1733293978918,2.7123,3686.9,3685.9,3.37536068]
[1733293979125,0.25381011,3686.8,3685.9,0.7879]
[1733293979354,2.71256,3686.6,3685.9,0.7879]
[1733293979509,2.7126,3686.5,3685.9,0.7879]
[1733293980551,2.71267,3686.4,3685.9,0.7879]
[1733293980749,0.7503,3686.6,3685.9,0.7879]
[1733293980750,0.7503,3686.6,3685.9,1.17845827]
[1733293981806,3.46289,3686.6,3685.9,1.17845827]
[1733293982349,0.57880062,3687.3,3686.3,0.7766]
[1733293982350,0.8039,3687.3,3686.3,0.7766]
[1733293982552,0.25411686,3687.2,3686.8,2.58746068]
[1733293982708,0.8039,3687.6,3687.0,0.825]
[1733293982901,0.25406578,3687.5,3687.0,0.825]
[1733293983153,0.25406578,3687.4,3687.0,0.825]
[1733293983443,3.51569,3687.6,3687.0,0.825]
[1733293983444,0.25406578,3687.3,3687.0,0.825]
[1733293983737,2.71187,3687.5,3687.2,1.16592918]
[1733293983923,0.25405559,3687.4,3687.2,1.16592918]
[1733293984097,0.25405559,3687.3,3687.2,1.16592918]
[1733293984318,0.8039,3687.6,3687.2,1.16592918]
[1733293984652,0.25401909,3687.5,3687.2,1.16592918]
[1733293984817,2.71201,3687.3,3687.2,1.16592918]
[1733293985020,2.96602909,3687.3,3687.2,1.16592918]
[1733293985658,2.96602909,3687.3,3686.7,0.8275]
[1733293985825,2.71201,3687.3,3686.7,1.52410781]
[1733293986024,2.71209,3687.2,3686.7,1.52410781]
[1733293986538,2.71186,3687.5,3686.6,2.58388531]
[1733293986850,2.71186,3687.5,3686.2,3.39858531]
[1733293986851,0.7845,3687.3,3686.2,3.39858531]
[1733293987058,0.2539699,3687.2,3686.2,3.39858531]
[1733293987243,2.71228,3687.0,3686.2,3.39858531]
[1733293987444,0.2539699,3686.9,3686.2,3.39858531]
[1733293987617,2.71228,3687.0,3686.3,0.39422005]
[1733293987826,2.71217,3687.1,3686.3,0.39422005]
[1733293988019,0.25398151,3687.0,3686.3,0.39422005]
[1733293988219,2.71217,3687.1,3686.3,0.39422005]
[1733293988451,0.25397256,3687.0,3686.3,0.39422005]
[1733293988755,0.25397256,3687.0,3686.2,3.39858531]
[1733293988756,2.71217,3687.1,3686.4,0.43364205]
[1733293988924,2.96621462,3687.0,3686.4,0.43364205]
[1733293989124,2.7123,3686.9,3686.4,0.43364205]
[1733293989651,2.7123,3686.9,3686.2,3.39858531]
[1733293989846,2.71242,3686.8,3686.2,3.39858531]
[1733293991158,0.7845,3687.3,3686.2,0.8147]
[1733293991357,0.25400876,3687.2,3686.6,2.58388531]
[1733293991560,0.86207625,3687.5,3686.8,0.7619]
[1733293991870,0.25398829,3687.4,3687.0,2.58388531]
[1733293992064,0.28327563,3687.5,3687.0,2.58388531]
[1733293992532,2.99520563,3687.5,3687.0,2.58388531]
[1733293992868,0.28327563,3687.5,3687.0,2.58388531]
[1733293993158,0.28327563,3687.5,3687.0,2.94430269]
[1733293997462,2.71201,3687.3,3687.0,2.58388531]
[1733293998045,0.28327563,3687.5,3687.1,0.8287]
[1733293998240,1.13397163,3688.7,3687.7,0.8287]
[1733293998431,0.25376569,3688.6,3688.3,2.58388531]
[1733293998628,0.25376569,3688.5,3688.4,0.8287]
[1733293998878,0.25371739,3689.0,3688.4,0.8287]
[1733293999078,0.25371739,3688.9,3688.4,0.8287]
[1733293999365,0.8291,3689.2,3688.4,0.8287]
[1733293999551,2.71077,3689.0,3688.4,0.8287]
[1733293999927,0.19630716,3689.1,3688.4,0.8287]
[1733294000127,2.71092,3688.8,3688.0,0.7617]
[1733294000663,0.19630716,3689.1,3688.0,0.7617]
[1733294000664,2.71098,3688.7,3688.0,0.7617]
[1733294000869,2.71105,3688.6,3688.0,0.7617]
[1733294001071,0.7975,3688.5,3687.8,0.54717103]
[1733294001270,0.7975,3688.5,3687.7,0.7849]
[1733294001470,2.71137,3688.2,3687.5,5.58388531]
[1733294001674,0.7975,3688.5,3687.5,2.58388531]
[1733294001675,2.71142,3688.1,3687.5,2.58388531]
[1733294002182,2.71143,3688.1,3687.5,2.58388531]
[1733294002477,3.50863,3688.5,3687.4,0.7849]
[1733294002478,2.7115,3688.0,3687.4,0.7849]
[1733294002848,0.350863,3688.4,3687.4,0.7849]
[1733294003179,0.8097,3688.3,3687.5,2.58388531]
[1733294003537,2.71135,3688.2,3687.5,2.58388531]
[1733294004187,2.71145,3688.1,3687.5,2.58388531]
[1733294004479,0.8097,3688.3,3687.5,2.58388531]
[1733294004686,2.71149,3688.1,3687.4,0.7849]
[1733294004884,3.063609,3688.1,3687.4,0.7849]
[1733294005833,0.352119,3688.1,3687.4,0.7849]
[1733294006076,2.71143,3688.1,3687.4,0.7849]
[1733294006445,2.71149,3688.0,3687.4,0.7849]
[1733294007854,2.71136,3688.2,3687.4,0.7849]
[1733294008055,3.063546,3688.1,3687.4,0.7849]
[1733294009396,0.352106,3688.1,3687.4,0.7849]
[1733294009692,2.71152,3688.0,3687.4,0.7849]
[1733294010678,0.8097,3688.3,3687.4,0.7849]
[1733294010884,0.772,3687.4,3686.3,0.7952]
[1733294011093,2.71223,3687.0,3686.3,0.7952]
[1733294011647,2.71203,3687.3,3686.3,1.13310853]
[1733294011873,2.71209,3687.2,3686.3,1.13310853]
[1733294013212,2.71216,3687.1,3686.3,1.13310853]
[1733294014966,0.772,3687.4,3686.3,1.13310853]
[1733294015170,3.48401,3687.4,3686.3,1.16023273]
[1733294015372,0.772,3687.4,3686.3,1.16023273]
[1733294015618,2.71201,3687.3,3686.3,1.16023273]
[1733294016570,2.71201,3687.3,3686.4,0.9456978]
[1733294016912,2.71208,3687.2,3686.4,0.9456978]
[1733294018575,0.772,3687.4,3686.6,0.8027]
[1733294018576,2.71194,3687.4,3686.6,0.8027]
[1733294018770,0.57880062,3687.6,3686.6,0.8027]
[1733294019071,3.29060062,3687.6,3686.6,0.8027]
[1733294019273,3.29060062,3687.6,3686.5,2.58388531]
[1733294019274,3.29060062,3687.6,3686.8,0.775]
[1733294019469,0.2827375,3687.5,3686.8,0.775]
[1733294022003,2.71197,3687.4,3686.8,0.775]
[1733294022190,0.2827375,3687.5,3686.8,0.775]
[1733294022392,2.9945975,3687.5,3686.8,0.775]
[1733294022909,0.27842554,3687.5,3686.8,0.775]
[1733294023880,0.27842554,3687.5,3686.8,1.68214553]
[1733294024315,0.27842554,3687.5,3687.1,0.8287]
[1733294024618,3.53303,3688.0,3687.1,0.8287]
[1733294024619,2.96502895,3687.9,3687.1,0.8287]
[1733294024821,2.7116,3687.9,3687.1,0.8287]
[1733294025110,2.71166,3687.8,3687.1,0.8287]
[1733294025274,0.41119006,3687.9,3687.1,0.85582009]
[1733294025475,0.8248,3688.3,3687.1,0.8287]
[1733294025703,0.25340686,3688.4,3687.5,0.812]
[1733294025875,0.25340686,3688.4,3687.2,0.02711875]
[1733294025876,0.25340686,3688.6,3687.9,0.812]
[1733294026086,2.71098,3688.7,3687.9,0.812]
[1733294026501,2.71083,3688.9,3687.9,0.812]
[1733294026709,3.19421384,3688.9,3687.9,0.812]
[1733294027013,0.25335082,3688.8,3687.9,3.812]
[1733294027213,3.69869716,3689.1,3687.9,3.812]
[1733294027214,2.71069,3689.1,3688.0,0.8246]
[1733294027511,0.25332175,3689.0,3688.0,0.8246]
[1733294027725,2.71054,3689.3,3688.3,0.8246]
[1733294028020,0.8157,3689.4,3688.3,0.8246]
[1733294028021,2.96386801,3689.2,3688.3,0.8246]
[1733294028222,0.63121481,3689.1,3688.3,0.8246]
[1733294029425,0.25319423,3689.3,3688.3,0.8246]
[1733294029588,2.96374423,3689.3,3688.3,0.8246]
[1733294029778,0.25319423,3689.2,3688.3,0.8246]
[1733294029980,2.7108,3689.0,3688.3,0.8246]
[1733294030179,0.25321822,3688.9,3688.3,0.8246]
[1733294030386,0.8157,3688.7,3687.8,0.8246]
[1733294030727,2.71099,3688.7,3687.8,0.8246]
[1733294030934,0.352669,3688.7,3687.8,0.8246]
[1733294031097,0.8157,3689.0,3687.8,0.8246]
[1733294031295,1.39450062,3688.8,3687.2,0.53123761]
[1733294031521,3.28978062,3688.7,3687.0,2.58388531]
[1733294031717,2.7115,3688.0,3687.0,2.58388531]
[1733294032030,0.57880062,3688.7,3687.0,2.58388531]
[1733294032031,2.71158,3687.9,3687.0,2.58388531]
[1733294032336,2.71143,3688.1,3687.1,0.53020639]
[1733294032617,2.71151,3688.0,3687.0,3.01544839]
[1733294032918,2.71156,3688.0,3687.0,3.01544839]
[1733294033389,2.71164,3687.9,3687.1,3.0]
[1733294033589,2.71142,3688.1,3687.1,3.0]
[1733294033819,0.623275,3688.0,3687.0,2.58388531]
[1733294033986,2.71186,3687.6,3686.9,0.8246]
[1733294034185,0.623275,3688.0,3686.9,0.8246]
[1733294034435,2.71182,3687.6,3686.9,0.8246]
[1733294034665,2.71187,3687.5,3686.9,0.8246]
[1733294039329,0.271187,3687.5,3686.4,1.36223204]
[1733294039542,0.7731,3687.5,3686.4,0.8317]
[1733294039715,2.71217,3687.1,3686.4,0.8317]
[1733294039935,2.71223,3687.0,3686.4,0.8317]
[1733294040443,0.7731,3687.5,3686.4,0.8317]
[1733294040444,2.71216,3687.1,3686.4,0.8317]
[1733294040613,0.7731,3687.5,3686.4,0.8317]
[1733294040814,2.71224,3687.0,3686.4,0.8317]
[1733294041024,2.71231,3686.9,3686.4,0.8317]
[1733294041267,0.40636906,3687.4,3686.0,2.58388531]
[1733294041268,2.58388531,3687.2,3686.0,0.7539]
[1733294041461,0.7769,3686.8,3686.0,0.7539]
[1733294041615,1.03029425,3686.8,3686.0,0.7539]
[1733294041819,2.71276,3686.3,3686.0,0.7539]
[1733294043286,0.57880062,3687.2,3685.3,3.55140252]
[1733294043287,2.71245,3686.7,3685.3,0.7962]
[1733294043456,2.71304,3685.9,3685.3,0.7962]
[1733294044315,2.71311,3685.8,3685.3,0.7962]
[1733294045812,0.8051,3686.1,3685.3,0.7962]
[1733294046618,2.71267,3686.4,3685.3,0.7962]
[1733294046619,0.832,3686.3,3685.3,0.7962]
[1733294046956,2.71302,3686.0,3685.3,0.7962]
[1733294047148,0.832,3686.3,3685.3,0.7962]
[1733294047316,2.71296,3686.1,3685.3,0.7962]
[1733294047517,0.57880062,3686.5,3685.6,2.58388531]
[1733294047843,3.29140062,3686.5,3685.7,0.8214]
[1733294048137,0.57880062,3686.5,3685.7,0.8214]
[1733294048338,3.29117062,3686.8,3685.7,0.8214]
[1733294048494,0.68354106,3686.7,3685.7,0.8214]
[1733294048696,2.71268,3686.4,3685.7,0.8214]
[1733294049351,0.8154,3686.5,3684.9,0.8088]
[1733294049531,2.71304,3685.9,3684.9,0.8088]
[1733294050043,0.8154,3685.9,3684.9,0.8088]
[1733294050332,2.85253006,3685.8,3684.9,0.8088]
[1733294050492,0.13942006,3685.8,3684.9,0.8088]
[1733294050731,2.71364,3685.1,3684.9,0.8088]
[1733294050918,2.71343,3685.4,3684.9,0.8088]
[1733294051117,2.71348,3685.3,3684.9,0.8088]
[1733294051955,2.71368,3685.1,3684.5,0.8116]
[1733294052156,2.7135,3685.3,3684.5,0.8116]
[1733294052359,0.13942006,3685.8,3684.5,0.8116]
[1733294052961,2.71377,3684.9,3683.9,3.39548531]
[1733294053866,0.8091,3685.3,3684.0,0.8116]
[1733294053867,3.5226,3685.3,3684.0,0.8116]
[1733294054161,2.71358,3685.2,3684.2,0.8116]
[1733294054470,0.8091,3685.3,3684.2,0.8116]
[1733294054841,0.8091,3685.3,3684.3,2.58388531]
[1733294055041,2.71364,3685.1,3684.3,2.58388531]
[1733294055362,1.38790062,3685.6,3684.4,0.8116]
[1733294055363,2.71349,3685.3,3684.4,0.8116]
[1733294055566,2.71349,3685.3,3684.4,1.21224838]
[1733294056079,2.71333,3685.5,3684.5,0.7774]
[1733294056767,3.54001,3685.9,3684.8,0.7774]
[1733294057266,2.71326,3685.7,3684.8,0.7774]
[1733294057566,0.8269,3685.9,3684.8,0.7774]
[1733294057763,3.53995,3685.9,3684.9,0.33612853]
[1733294058139,0.8269,3685.9,3684.9,0.33612853]
[1733294058345,0.57880062,3686.1,3685.1,3.36198531]
[1733294058544,0.57880062,3686.1,3685.2,0.7781]
[1733294058770,2.71288,3686.2,3685.2,0.7781]
[1733294058955,0.57880062,3686.3,3685.2,0.7781]
[1733294059128,0.8008,3686.5,3685.3,0.8232]
[1733294059332,0.57880062,3686.6,3685.6,0.8232]
[1733294060458,2.71262,3686.5,3685.6,0.8232]
[1733294060690,2.71269,3686.4,3685.6,0.8232]
[1733294060831,0.32914906,3686.3,3685.6,0.8232]
[1733294061031,0.57880062,3686.6,3685.6,0.8232]
[1733294061270,2.71282,3686.2,3685.6,0.8232]
[1733294061654,0.57880062,3686.6,3685.6,0.8232]
[1733294061655,2.71275,3686.3,3685.6,0.8232]
[1733294061856,0.57880062,3686.6,3685.6,0.8232]
[1733294061857,2.71282,3686.2,3685.6,0.8232]
[1733294062853,2.984102,3686.2,3685.6,0.8232]
[1733294063048,2.984102,3686.2,3685.3,0.7768]
[1733294063049,2.71304,3685.9,3685.3,0.7768]
[1733294063254,0.271282,3686.2,3685.3,0.7768]
[1733294063586,2.71322,3685.7,3684.8,0.8312]
[1733294063746,0.7558,3686.3,3684.8,0.8312]
[1733294063747,0.57880062,3686.1,3684.8,0.8312]
[1733294063948,2.71329,3685.6,3684.8,0.8312]
[1733294064149,2.71307,3685.9,3684.8,0.8312]
[1733294064533,2.71312,3685.8,3684.8,0.8312]
[1733294064863,0.57880062,3686.1,3684.7,2.58388531]
[1733294064864,3.29175062,3686.1,3685.0,0.7795]
[1733294065173,0.57880062,3686.1,3685.0,0.7795]
[1733294065330,3.29169062,3686.1,3685.0,0.7795]
[1733294065816,0.57880062,3686.1,3685.0,0.7795]
[1733294066015,3.29169062,3686.1,3685.0,0.7795]
[1733294066215,3.29169062,3686.1,3685.1,0.41210085]
[1733294066997,2.71297,3686.0,3685.1,0.41210085]
[1733294067198,2.71297,3686.0,3685.2,0.8112]
[1733294067607,0.57880062,3686.1,3685.2,0.8112]
[1733294069117,0.57880062,3686.1,3685.2,3.52473]
[1733294069327,0.57880062,3686.1,3685.5,2.58388531]
[1733294069602,0.57880062,3686.9,3685.8,0.7986]
[1733294069756,0.25375798,3686.8,3685.8,0.7986]
[1733294069917,0.25375798,3686.7,3685.8,0.7986]
[1733294070120,0.25375798,3686.6,3685.8,0.7986]
[1733294070319,2.7124,3686.8,3685.8,1.40818153]
[1733294070560,0.25372555,3686.7,3685.8,1.40818153]
[1733294070762,0.25372555,3686.6,3685.8,1.40818153]
[1733294070915,0.7569,3686.7,3685.8,0.7986]
[1733294071121,2.7129,3686.1,3685.5,0.7878]
[1733294071417,0.25378263,3686.0,3685.5,0.7878]
[1733294071621,2.7129,3686.1,3685.5,0.7878]
[1733294071831,0.25381084,3686.0,3685.5,0.7878]
[1733294072035,2.7129,3686.1,3685.5,0.7878]
[1733294073046,0.25380765,3686.0,3685.5,0.7878]
[1733294073282,0.25383118,3686.4,3685.5,0.7878]
[1733294073545,0.25386081,3686.3,3685.5,0.7878]
[1733294073750,0.25386081,3686.2,3685.5,0.7878]
[1733294073909,0.25386081,3686.1,3685.5,0.7878]
[1733294074249,2.71274,3686.3,3685.5,0.7878]
[1733294074406,0.25387988,3686.2,3685.5,0.7878]
[1733294074752,0.25387988,3686.1,3685.5,0.7878]
[1733294074954,2.71282,3686.2,3685.5,0.7878]
[1733294075166,0.52515327,3686.1,3685.5,0.7878]
[1733294075514,0.25387127,3686.0,3685.5,0.7878]
[1733294075744,0.57880062,3686.6,3685.5,2.58388531]
[1733294075946,0.25386729,3686.5,3685.8,3.4341515]
[1733294076145,0.25386729,3686.5,3685.7,0.55]
[1733294076146,0.25386729,3686.4,3685.7,2.71318]
[1733294076310,2.71234,3686.9,3685.6,0.55]
[1733294076516,0.52507564,3686.8,3685.8,0.55]
[1733294076752,0.25384164,3686.7,3685.8,0.55]
[1733294076953,0.25384164,3686.6,3685.7,0.55]
[1733294077167,0.25384164,3686.5,3685.7,0.55]
[1733294077373,0.25384164,3686.4,3685.7,3.26318]
[1733294077666,0.25384164,3686.7,3685.7,3.26318]
[1733294077869,0.25384164,3686.6,3685.7,1.19317798]
[1733294078043,0.25384164,3686.5,3685.7,1.19317798]
[1733294078242,0.271234,3686.8,3685.7,1.19317798]
[1733294078456,2.96628178,3686.7,3685.7,1.19317798]
[1733294078658,2.96638178,3686.6,3685.5,2.58388531]
[1733294078833,0.25383178,3686.5,3685.7,0.8268]
[1733294079035,0.25383178,3686.4,3685.7,0.8268]
[1733294079255,2.71255,3686.6,3685.7,0.8268]
[1733294079462,2.96652172,3686.5,3685.7,0.8268]
[1733294079766,2.71282,3686.2,3685.7,0.8268]
[1733294079981,0.29665217,3686.4,3685.7,0.8268]
[1733294080176,0.25386637,3686.3,3685.7,0.8268]
[1733294080476,0.25386637,3686.2,3685.7,0.8268]
[1733294080648,2.71267,3686.4,3685.7,0.8268]
[1733294080844,0.2538703,3686.3,3685.7,0.8268]
[1733294081173,0.2538703,3686.2,3685.7,0.8268]
[1733294081371,2.71277,3686.3,3685.7,0.8268]
[1733294081678,0.60238612,3686.2,3685.7,0.8268]
[1733294081876,0.348507,3686.2,3685.7,0.8268]
[1733294082186,0.348507,3686.2,3685.2,3.0]
[1733294082187,3.57880062,3687.3,3686.1,0.8027]
[1733294082351,3.29086062,3687.3,3686.1,0.8027]
[1733294082678,2.96590684,3687.2,3686.1,0.8027]
[1733294082981,0.25381684,3687.1,3686.1,0.8027]
[1733294083281,0.60828759,3687.0,3686.1,0.02712627]
[1733294083576,0.25381684,3686.9,3686.3,0.8027]
[1733294083780,2.71208,3687.2,3686.3,0.8027]
[1733294084081,0.25376414,3687.1,3686.3,0.8027]
[1733294084234,0.25376414,3687.0,3686.3,0.8027]
[1733294084436,0.25376414,3686.9,3686.3,0.8027]
[1733294084671,2.71208,3687.2,3686.3,0.8027]
[1733294084921,0.5828477,3687.1,3686.3,0.8027]
[1733294085067,0.25375964,3687.0,3686.3,0.8027]
[1733294085271,0.25375964,3686.9,3686.3,0.8027]
[1733294085470,0.32908806,3687.1,3686.3,0.8027]
[1733294085707,0.25378188,3687.0,3686.3,0.8027]
[1733294085912,0.25378188,3686.9,3686.3,0.8027]
[1733294086110,0.38737506,3687.0,3686.3,0.8027]
[1733294086286,0.25378295,3686.9,3686.3,0.8027]
[1733294086483,3.09965506,3687.0,3686.3,0.8027]
[1733294086694,0.25381478,3686.9,3686.3,0.8027]
[1733294086995,0.25381478,3686.8,3686.3,0.8027]
[1733294087198,0.29661148,3686.7,3686.3,0.8027]
[1733294087980,0.25382149,3687.1,3686.3,0.8027]
[1733294088344,1.71380185,3687.4,3686.3,0.8027]
[1733294088345,2.96605149,3687.0,3686.3,0.8027]
[1733294088487,0.25382149,3686.9,3686.3,0.8027]
[1733294088667,2.71223,3687.0,3686.3,0.8027]
[1733294088876,0.25379982,3686.9,3686.3,0.8027]
[1733294089176,2.71232,3686.9,3686.3,0.8027]
[1733294089671,1.71380185,3687.4,3686.3,0.8027]
[1733294089672,0.271232,3686.8,3686.3,0.8027]
[1733294092127,2.71246,3686.7,3686.3,0.8027]
[1733294092289,2.71213,3687.2,3686.3,0.8027]
[1733294092290,0.8024,3687.2,3686.3,0.8027]
[1733294092488,2.965929,3687.1,3686.3,0.8027]
[1733294092730,0.253719,3687.0,3686.3,0.8027]
[1733294093027,2.71246,3686.7,3686.3,0.8027]
[1733294093225,0.271246,3686.6,3686.3,0.8027]
[1733294096793,2.983766,3686.6,3686.3,0.8027]
[1733294098134,2.71261,3686.5,3685.8,0.8296]
[1733294098715,0.271246,3686.6,3685.8,0.8296]
[1733294098918,2.983776,3686.6,3685.8,0.8296]
[1733294099118,0.35625766,3686.5,3685.8,0.8296]
[1733294100215,0.85004662,3686.6,3685.8,0.8296]
[1733294100394,2.96656225,3686.5,3685.8,0.8296]
[1733294100734,2.71264,3686.5,3685.8,0.8296]
[1733294101298,0.57880062,3686.6,3685.8,0.8296]
[1733294101794,0.57880062,3686.6,3686.1,0.8326]
[1733294101994,0.8164,3687.2,3686.1,0.8326]
[1733294101995,3.52849,3687.2,3686.1,0.8326]
[1733294102244,0.91914858,3687.1,3686.1,0.8326]
[1733294102476,0.25392525,3687.0,3686.1,0.8326]
[1733294102739,0.25396438,3686.9,3686.1,0.8326]
[1733294102941,3.37739333,3687.1,3686.1,0.8326]
[1733294103099,2.71225,3687.0,3686.1,0.8326]
[1733294103300,2.71238,3686.8,3686.1,0.8326]
[1733294103528,0.25395794,3686.7,3686.1,0.8326]
[1733294103728,2.71238,3686.8,3686.1,0.8326]
[1733294103915,0.25400152,3686.7,3686.1,0.8326]
[1733294104124,0.33774733,3686.9,3686.1,0.8326]
[1733294104331,3.27136834,3686.8,3686.1,0.8326]
[1733294104608,0.25399061,3686.7,3686.1,0.8326]
[1733294104912,3.01737773,3686.8,3686.1,0.8326]
[1733294105307,0.25404971,3686.7,3686.1,0.8326]
[1733294105532,3.01737773,3686.8,3686.1,0.8326]
[1733294105710,0.5558498,3686.7,3686.1,0.8326]
[1733294105910,0.30173777,3686.7,3686.1,0.8326]
[1733294106351,0.7668,3686.6,3685.4,0.53582628]
[1733294106504,0.7668,3686.6,3685.2,0.78]
[1733294106505,2.71267,3686.4,3685.2,0.78]
[1733294106708,0.51932719,3686.3,3685.2,0.78]
[1733294107017,1.93000962,3686.3,3685.2,0.78]
[1733294107349,2.71296,3686.1,3685.2,0.78]
[1733294107542,2.71304,3685.9,3685.2,0.78]
[1733294108743,2.71314,3685.8,3685.2,0.78]
[1733294109801,2.7132,3685.7,3685.2,0.78]
[1733294110413,0.7668,3686.1,3685.2,0.78]
[1733294110621,2.71327,3685.6,3685.2,0.78]
[1733294111129,0.2999929,3686.0,3685.2,0.78]
[1733294111130,2.71341,3685.4,3685.2,0.78]
[1733294111449,0.57880062,3685.8,3684.8,0.7946]
[1733294111600,2.71361,3685.2,3684.8,0.7946]
[1733294111804,2.71333,3685.6,3684.8,0.7946]
[1733294112804,3.29192062,3685.8,3684.8,0.7946]
[1733294113010,0.35919135,3685.7,3684.8,0.7946]
[1733294113206,0.57880062,3685.8,3684.8,0.7946]
[1733294113626,2.71334,3685.5,3684.8,0.7946]
[1733294114053,3.29191062,3685.8,3684.8,0.7946]
[1733294114347,2.71348,3685.3,3684.8,0.7946]
[1733294114666,2.71357,3685.2,3684.5,0.8033]
[1733294114877,3.29205062,3685.7,3684.5,0.8033]
[1733294114878,0.7733,3685.6,3684.5,0.8033]
[1733294115028,0.57880062,3685.7,3684.6,0.8033]
[1733294115373,3.29200062,3685.7,3684.6,0.8033]
[1733294115569,2.71326,3685.6,3684.6,0.8033]
[1733294115936,0.57880062,3685.7,3684.6,0.8033]
[1733294116158,0.57880062,3685.7,3684.8,0.8281]